Cogmind - Beta 9.4 @@@ ROGUE MODE // 2020.03.16 @ 05:00:00 Player: dkudriavtsev Result: Destroyed by G-47 Trooper with Particle Gun Performance ------------- Evolutions (1) 500 Regions Visited (2) 400 Robots Destroyed (24) 120 Value Destroyed (545) 545 Prototype IDs (0) 0 Alien Tech Used (0) 0 Bonus (0) 0 TOTAL SCORE: 1565 Bonus ------- None Cogmind --------- Core Integrity 0/400 Matter 280/300 Energy 3/100 System Corruption 2% Temperature Cool (9) Movement Rolling (90) Ox1 Location -9/Materials Parts ------- > --- POWER (1) -------- (None) > --- PROPULSION (3) --- Wheel > --- UTILITY (3) ------ Large Storage Unit Terrain Scan Processor > --- WEAPON (2) ------- Shock Rifle > --- INVENTORY (10) --- Light Ion Engine Light Ion Engine Light Treads Light Treads Armored Wheel Armored Wheel Heat Sink Large Storage Unit Peak State ------------ > --- POWER ------------ Improved Ion Engine > --- PROPULSION ------- Light Treads Light Treads Improved Aluminum Leg > --- UTILITY ---------- Large Storage Unit Terrain Scan Processor Melee Analysis Suite > --- WEAPON ----------- Heavy Assault Rifle Katana > --- INVENTORY -------- Light Ion Engine Light Ion Engine Light Treads Aluminum Leg Wheel Armored Wheel Heat Sink Large Storage Unit Small Laser Small Laser [Rating: 18] Favorites ----------- Power Ion Engine Engine Ion Engine Propulsion Aluminum Leg Treads Light Treads Leg Aluminum Leg Wheel Wheel Utility Large Storage Unit Device Integration Mediator Storage Large Storage Unit Processor Terrain Scan Processor Weapon Light Assault Rifle Energy Gun Small Laser Ballistic Gun Light Assault Rifle Slashing Weapon Katana Build | -11 -10 -9 ------- Run | Scr Mat Mat Slots Evolved 2 | . . 2 Power . | . . . Propulsion 1 | . . 1 Utility 1 | . . 1 Weapon . | . . . Parts Attached 41 | 7 6 28 Power 3 | 1 1 1 Engine 3 | 1 1 1 Core . | . . . Reactor . | . . . Propulsion 19 | 2 1 16 Treads 5 | . . 5 Leg 13 | 2 1 10 Wheel 1 | . . 1 Hover . | . . . Flight . | . . . Utility 5 | 1 2 2 Device 1 | . . 1 Storage 2 | 1 1 . Processor 2 | . 1 1 Hackware . | . . . Protection . | . . . Artifact . | . . . Weapon 14 | 3 2 9 Energy Gun 9 | 2 2 5 Energy Cannon . | . . . Ballistic Gun 4 | 1 . 3 Ballistic Cannon . | . . . Launcher . | . . . Special Weapon . | . . . Impact Weapon . | . . . Slashing Weapon 1 | . . 1 Piercing Weapon . | . . . Special Melee Weapon . | . . . Unidentified Prototypes . | . . . Parts Lost 12 | . . 12 Power 1 | . . 1 Propulsion 5 | . . 5 Utility 1 | . . 1 Weapon 5 | . . 5 Highest Loss Streak 7 | . . 7 Average Slot Usage (%) 90 | . 96 86 Engine 10 | . 14 8 Treads 2 | . . 4 Leg 24 | . 28 22 Device 2 | . . 4 Storage 12 | . 14 11 Processor 13 | . 12 14 Energy Gun 9 | . 12 7 Ballistic Gun 10 | . 14 8 Slashing Weapon 2 | . . 3 Naked Turns . | . . . Heaviest Build 29 | 11 23 29 Greatest Support 60 | 20 20 60 Greatest Overweight (x) 5 | 1 1 5 Average Overweight (x) . | . . . Largest Inventory Capacity 12 | 6 12 10 Average Capacity 9 | 5 9 10 Most Carried 10 | 6 10 10 Average Carried 8 | 2 8 9 Final Capacity 10 | 6 10 10 Final Carried 10 | 6 10 8 Class Distribution -------------------- 74% | Mutant 25% | Scavenger-Mutant Dominant Class ---------------- Mutant | -10/Materials Mutant | -9/Materials Resources | -11 -10 -9 ----------- Run | Scr Mat Mat Matter Collected 539 | 231 114 194 Remotely . | . . . Salvage Created 801 | . 177 624 Parts 41 | . 10 31 Haulers Intercepted . | . . . Recyclers Shooed 1 | . . 1 Parts Field Recycled . | . . . Retrieved Matter . | . . . Parts Self-Destructed . | . . . Prevented . | . . . Kills | -11 -10 -9 ------- Run | Scr Mat Mat Combat Hostiles Destroyed 20 | . 4 16 Melee 5 | . . 5 Guns 15 | . 4 11 Classes Destroyed 6 | . 1 5 Worker 3 | . . 3 Recycler 1 | . . 1 Swarmer 8 | . . 8 Grunt 9 | . 4 5 Duelist 1 | . . 1 Sentry 2 | . . 2 Best Kill Streak 6 | . 3 6 Combat Bots Only 6 | . 3 6 Max Kills in Single Turn 1 | . 1 1 Gunslinging . | . . . Exploded . | . . . Melee 1 | . . 1 Uniques/NPCs Destroyed . | . . . Combat | -11 -10 -9 -------- Run | Scr Mat Mat Damage Taken 1892 | . 298 1594 Core 520 | . 117 403 Absorbed by Shields . | . . . Core Remaining (%) 76 | 100 53 . Volleys Fired 52 | . 17 35 Largest 2 | . 2 2 Hottest 65 | . 60 65 Shots Fired 88 | . 34 54 Gun 88 | . 34 54 Cannon . | . . . Launcher . | . . . Special . | . . . Kinetic 43 | . 17 26 Thermal 29 | . 17 12 Explosive . | . . . Electromagnetic 16 | . . 16 Robot Hit Streak 10 | . 5 10 Robot Miss Streak 6 | . 6 4 Penetration Max . | . . . Secondary Targets 5 | . 1 4 Max Gunslinging Chain 1 | . 1 1 Shots Hit Robots 77 | . 17 60 Core Hits 41 | . 10 31 Critical Hits . | . . . Critical Kills . | . . . Critical Parts Destroyed . | . . . Melee Attacks 27 | . . 27 Impact . | . . . Slashing 27 | . . 27 Piercing . | . . . Sneak Attacks 3 | . . 3 Combat Hostiles . | . . . Follow-up Attacks . | . . . Damage Inflicted 1605 | . 265 1340 Guns 698 | . 252 446 Cannons . | . . . Explosions . | . . . Melee 868 | . . 868 Ramming 39 | . 13 26 Kinetic 242 | . 113 129 Thermal 236 | . 139 97 Explosive . | . . . Electromagnetic 220 | . . 220 Impact . | . . . Slashing 868 | . . 868 Piercing . | . . . Highest Corruption 2 | . . 2 Average Corruption 2 | . . 2 Corruption Purged . | . . . Effects 6 | . . 6 Message Errors 1 | . . 1 Heat Flow Errors 1 | . . 1 Data Loss (minor) 1 | . . 1 Targeting Errors 3 | . . 3 Overload Shots . | . . . Overflow Damage 167 | . . 167 Projectiles . | . . . Explosions . | . . . Melee 167 | . . 167 Knockbacks . | . . . Impact . | . . . Kinetic . | . . . Secondary . | . . . Self-Inflicted Damage 5 | . . 5 Shots . | . . . Rammed 6 | . . 6 Targets Rammed 12 | . 1 11 Kicked 5 | . 1 4 Crushed 1 | . . 1 Highest Temperature 268 | . 162 268 Average Temperature 60 | . 80 46 Received Heat Transfer 540 | . 168 372 Effects 2 | . . 2 Interference 2 | . . 2 Siege Activations . | . . . Robots Corrupted . | . . . Combat Hostiles . | . . . Parts Fried 2 | . . 2 Impact Corruptions . | . . . Robots Melted . | . . . Combat Hostiles . | . . . Parts Melted . | . . . Heat Transferred 550 | . 325 225 Parts Sabotaged . | . . . Parts Stolen . | . . . Parts Stripped . | . . . Power Chain Reactions . | . . . Missiles Intercepted . | . . . Alert | -11 -10 -9 ------- Run | Scr Mat Mat Peak Influence 376 | . 128 376 Average Influence 127 | . 63 186 Maximum Alert Level 1 | . . 1 Low Security (%) 74 | 100 100 55 Level 1 25 | . . 44 Level 2 . | . . . Level 3 . | . . . Level 4 . | . . . Level 5 . | . . . High Security . | . . . Max Security . | . . . Squads Dispatched 4 | . 2 2 Investigation 1 | . 1 . Extermination . | . . . Reinforcement 3 | . 1 2 Assault . | . . . Garrison . | . . . Intercept . | . . . Construction Impeded . | . . . Haulers Reinforced . | . . . Stealth | -11 -10 -9 --------- Run | Scr Mat Mat Distress Signals 3 | . . 3 Communications Jammed . | . . . Distress Signals . | . . . Times Spotted 35 | . 6 29 Peak Tracking Total 10 | . 3 10 Tactical Retreats 2 | . 1 1 Traps | -11 -10 -9 ------- Run | Scr Mat Mat Traps Triggered 1 | . 1 . Indirectly . | . . . Trap Hack Attempts . | . . . Triggered . | . . . Disarmed . | . . . Reprogrammed . | . . . Reused . | . . . Traps Extracted . | . . . Installed . | . . . Triggered . | . . . Machines | -11 -10 -9 ---------- Run | Scr Mat Mat Machines Disabled . | . . . Max in Single Turn . | . . . Machines Sabotaged . | . . . Garrisons Compromised . | . . . Overloaded Fab Kills . | . . . Fab Network Shutdowns . | . . . Hacking | -11 -10 -9 --------- Run | Scr Mat Mat Machines Accessed 5 | . 3 2 Terminals 3 | . 1 2 Fabricators . | . . . Repair Stations 1 | . 1 . Recycling Units 1 | . 1 . Scanalyzers . | . . . Garrison Access . | . . . Total Hacks 12 | . 8 4 Successful 6 | . 4 2 Failed 6 | . 4 2 Catastrophic 1 | . . 1 Database Lockouts . | . . . Manual 7 | . 4 3 Terminals 7 | . 3 4 Fabricators . | . . . Repair Stations 4 | . 4 . Recycling Units 1 | . 1 . Scanalyzers . | . . . Garrison Access . | . . . Terminal Hacks . | . . . Fabricator Hacks . | . . . Repair Station Hacks 2 | . 2 . Scan Component 1 | . 1 . Repair 1 | . 1 . Recycling Unit Hacks . | . . . Scanalyzer . | . . . Garrison Access Hacks . | . . . Unauthorized Hacks 11 | . 6 5 Terminals 3 | . 1 2 Track 2 | . 1 1 Botnet 1 | . . 1 Fabricators . | . . . Repair Stations . | . . . Recycling Units 1 | . 1 . Recyclers 1 | . 1 . Scanalyzers . | . . . Garrison Access . | . . . Data Cores Recovered . | . . . Used . | . . . Hacking Detections 3 | . 2 1 Full Trace Events 1 | . . 1 Feedback Events . | . . . Feedback Blocked . | . . . Robot Schematics Acquired . | . . . Robots Built . | . . . Matter . | . . . Time . | . . . Total Robot Build Rating . | . . . Part Schematics Acquired . | . . . Parts Built . | . . . Matter . | . . . Time . | . . . Total Part Build Rating . | . . . Parts Repaired 1 | . 1 . Time 26 | . 26 . Parts Recycled . | . . . Recycled Matter . | . . . Retrieved Matter . | . . . Retrieved Components . | . . . Parts Scanalyzed . | . . . Part Schematics Acquired . | . . . Parts Damaged . | . . . Bothacking | -11 -10 -9 ------------ Run | Scr Mat Mat Used RIF Installer . | . . . Robots Hacked . | . . . Non-combat . | . . . Combat . | . . . Robot Hacks Applied . | . . . Relay Couplers Released . | . . . Robots Rewired . | . . . Allies Hacked . | . . . Hacks Repelled . | . . . Allies | -11 -10 -9 -------- Run | Scr Mat Mat Total Allies . | . . . Largest Group . | . . . Highest-Rated Group . | . . . Highest-Rated Ally . | . . . Total Orders . | . . . Ally Attacks . | . . . Total Damage . | . . . Kills . | . . . Allies Corrupted . | . . . Allies Melted . | . . . Intel | -11 -10 -9 ------- Run | Scr Mat Mat Robot Analysis Total . | . . . Derelict Logs Recovered . | . . . Drone Launches . | . . . Drone Recoveries . | . . . Exploration | -11 -10 -9 ------------- Run | Scr Mat Mat Turns Passed 949 | 72 344 533 Spaces Moved 429 | 49 173 207 Core 9 | 8 . 1 Treads 18 | . . 18 Legs 401 | 41 173 187 Wheels 1 | . . 1 Hover . | . . . Flight . | . . . Fastest Speed 50 | 50 120 90 Average Speed 139 | 111 147 138 Slowest Speed 300 | 120 150 300 Overloaded Moves . | . . . Propulsion Burnouts . | . . . Robots Hopped . | . . . Cave-ins Triggered . | . . . Exploration Rate (%) 17 | 4 29 18 Regions Visited 2 Branch Regions . Pre-discovered Areas . | . . . Known Exits Taken . | . . . Unknown Exits Taken 2 | 1 1 . Scrap Searched . | . . . Spaces Dug . | . . . Terrain Destroyed . | . . . Melee . | . . . Projectile . | . . . AOE . | . . . Actions | -11 -10 -9 --------- Run | Scr Mat Mat Total 650 | 64 229 357 Wait 52 | 1 26 25 Move 427 | 48 172 207 Hop . | . . . Pick Up 22 | 8 4 10 Fast Attach 17 | 4 4 9 Attach 8 | 2 . 6 Detach . | . . . Swap 16 | 1 2 13 Drop 17 | . 3 14 Fire 52 | . 17 35 Melee 27 | . . 27 Ram . | . . . Kick 11 | . 1 10 Crush 1 | . . 1 Escape Stasis . | . . . Rewire . | . . . Trap . | . . . Miscellaneous . | . . . Route ------- -11/Scrapyard -10/Materials -9/Materials History --------- Turn | Location | Event 5 | -11/Scrapyard | Discovered new exit (range 16) 73 | -11/Scrapyard | Entered Materials 300 | -10/Materials | Build established: Mutant 316 | -10/Materials | Discovered new exit (range 8) 362 | -10/Materials | Repaired Sml. Laser 417 | -10/Materials | Entered another Materials area 417 | -9/Materials | Evolved 2 slots: Propulsion x1, Utility x1 936 | -9/Materials | Core integrity fell below 50% 939 | -9/Materials | Lost 7 parts (1p3n3w) 945 | -9/Materials | Core integrity fell below 20% 950 | -9/Materials | Destroyed by G-47 Trooper with Particle Gun Last Messages --------------- 00904_ Katana destroyed. 00906_ K-01 Serf collects debris. 00908_ Slammed into S-10 Pest. 00908_ Sml. Laser destroyed. 00911_ Acquired 3 matter. 00911_ O-16 Technician: "IFF HANDSHAKE FAILED. SECURING TERMINAL." 00914_ Acquired Aluminum Leg. 00920_ ALERT: Hostiles spotted, dispatching reinforcements to Terminal M002. 00921_ W-16 Scout sends out distress signal. 00922_ K-01 Serf collects debris. 00927_ Acquired Shock Rifle. 00932_ S-10 Pest destroyed. 00934_ R-06 Scavenger destroyed. 00935_ W-16 Scout sends out distress signal. 00939_ Shock Rifle destroyed. 00940_ B-36 Bruiser destroyed. 00940_ Aluminum Leg destroyed. 00944_ Melee Analysis Suite destroyed. 00944_ Acquired Shock Rifle. Map ----- +----------------------------------------------------+ | ????????????????????????????????????????????? | | ????????????????????????????????????????????? | | ????????????????????????????????????????????? | | ????????????????????????????????????????????? | | ????????????????????????????????????????????? | | ????????????????????????????????????????????? | | ????????? ??????????????????????????????????? | | ????????? ??????????????????????????????????? | | ????????? ??????????????????????????????????? | | ????????? ??????????????????????????????????? | | ????????# ??????????????????????????????????? | | ????????# ??????????????????????????????????? | | ????????# ??????????????????????????????????? | | ????????# #?????????????????????????????????? | | ????????# #???????????????????#?????????????? | | ????????# #?????????????????? #?????????????? | | ????????# #????????????????? #?????????????? | | ????????# #???????????????? #?????????????? | | ????????# #########+####### ###???????????? | | ????????# s ??????????? | | ????????#% gs ??????????? | | ????????#%%= [!w ???????????? | | ?????#####+#######Yg !g##+##???????????????? | | ?????# %%^ #?# =! =#???????????????????? | | ?????# [ #?#!!% !!#???????????????????? | | ?????# ! #?#!!@[!!#???????????????????? | | ?????# !! #?########???????????????????? | | ?????#"" ! [#????????????????????????????? | | ?????#"T ##???????????????????????????? | | ?????#"" #???????????????????????????? | | ?????#%= ##???????????????????????????? | | ?????#+#########????????????????????????????? | | ?????#%#????????????????????????????????????? | | ?????#=#????????????????????????????????????? | | ?????#%#????????????????????????????????????? | | ?????# #????????????????????????????????????? | | ?????#%#????????????????????????????????????? | | ?????#!#????????????????????????????????????? | | ?????#[#????????????????????????????????????? | | ?????# #????????????????????????????????????? | | ?????#!#????????????????????????????????????? | | ?????# #????????????????????????????????????? | | ?????# #????????????????????????????????????? | | ?????# #????????????????????????????????????? | | ?????# #????????????????????????????????????? | | ?????# ########?????????????????????????????? | | ?????# # ! ! #?????????????????????????????? | | ?????# # #?????????????????????????????? | | ?????# # %="" #?????????????????????????????? | | ?????# #%=["""#?????????????????????????????? | +----------------------------------------------------+ Best States ------------- Heat Dissipation 28 Energy Generation 12 Energy Capacity 265 Matter Stores 300 Matter Capacity 300 Sight Range 16 Terrain Scan Density 85 Evasion (%) 40 Melee Accuracy 5 Recoil Reduction 3 Item Schematics ----------------- None Robot Schematics ------------------ None Fabricated ------------ Nothing Alien Tech Used ----------------- None Achievements -------------- None Challenges ------------ None Game ------ Seed ReclamationMappingWeb Manual? 0 Play Time 00:18:35 Cumulative 5.5 hours Start 2020.03.16 @ 04:40:05 End 2020.03.16 @ 05:00:00 Sessions 1 Manual Loads 0 Difficulty Rogue Special Mode None Game No. 11 Rogue 11 Adventurer 0 Explorer 0 Win Type - Total 0 Types 0/0/0/0/0/0/0 Lore% 12 Gallery% 11 Achievement% 13 Wizard Run 0 Options --------- ASCII 0 Keyboard 0 Movement Mouse Keybinds 0 Fullscreen 1 Font 24/Proggy Map View 76x50 Tactical HUD 1 Map Filters NONE Filters NONE Steam 1 RUN: ef81401a-6ade-4952-8e02-7bb1b70706a6